fUST/lending_fUST_20240924
["ID","MTS","AMOUNT","RATE_DAILY","PERIOD"]
[339013762,1727125626516,-500.0,0.00030874,2]
[339013763,1727125626539,-500.0,0.00030874,2]
[339013764,1727125626563,-651.64466435,0.00030874,2]
[339013765,1727125626587,-500.0,0.00030874,2]
[339013766,1727125626610,-317.02096801,0.00030874,2]
[339013767,1727125626632,-500.0,0.00030874,2]
[339013768,1727125626655,-500.0,0.00030874,2]
[339013769,1727125626677,-344.34158366,0.00030874,2]
[339013770,1727125626700,-546.4808557,0.00030875,15]
[339013771,1727125626721,-1830.37828858,0.00030875,15]
[339013772,1727125626742,-4074.21843342,0.00030875,4]
[339013773,1727125630127,-999.51780856,0.00030874,2]
[339013774,1727125630149,-1425.12391989,0.00030875,4]
[339013775,1727125640149,-2249.917942,0.00030875,4]
[339013778,1727125791293,1118.30534299,0.00025,2]
[339013784,1727125831626,-189.650857,0.00028769,2]
[339013786,1727125831638,-284.18329327,0.00030774,2]
[339013788,1727125831650,-377.02172106,0.00030774,2]
[339013790,1727125831659,-400.0,0.00030864,2]
[339013792,1727125831668,-239.07162937,0.00030864,2]
[339013794,1727125831678,-365.37278853,0.00030865,4]
[339013796,1727125831689,-2776.06602369,0.00030865,4]
[339013800,1727125831700,-622.35181148,0.00030865,4]
[339013803,1727125831712,-486.54876236,0.00030865,4]
[339013846,1727125838061,-39018.93344684,0.00030865,4]
[339013847,1727125838071,-9452.79550712,0.00030876,4]
[339013848,1727125838082,-25162.62275918,0.00030876,4]
[339013849,1727125838091,-500.0,0.00030885,2]
[339013850,1727125838102,-221.91467761,0.00030885,2]
[339013851,1727125838111,-500.0,0.00030885,2]
[339013852,1727125838120,-291.03910856,0.00030885,2]
[339013853,1727125838129,-173398.6669,0.00030886,30]
[339013854,1727125838139,-153.2,0.00031738,6]
[339013855,1727125838148,-153.0,0.00032094,2]
[339013856,1727125838157,-153.0,0.00032094,2]
[339013857,1727125838167,-153.0,0.00032096,2]
[339013858,1727125838176,-153.0,0.00032097,2]
[339013859,1727125838185,-153.2,0.0003229,6]
[339013860,1727125838194,-150.112233,0.000323,8]
[339013861,1727125838203,-661.20501428,0.00032363,2]
[339013862,1727125838212,-150.112239,0.000327,10]
[339013863,1727125838221,-17307.7091332,0.00032798,4]
[339013864,1727125838230,-8653.85456658,0.00032808,5]
[339013865,1727125838239,-26258.60208527,0.00032818,3]
[339013866,1727125838249,-153.2,0.00032842,6]
[339013867,1727125838258,-17307.7091332,0.00032846,5]
[339013868,1727125838267,-8653.85456658,0.00032854,5]
[339013869,1727125838276,-8653.85456658,0.00032856,5]
[339013870,1727125838286,-151.0,0.00032856,7]
[339013871,1727125838295,-415.854713,0.00032856,7]
[339013872,1727125838304,-415.854713,0.00032856,7]
[339013873,1727125838314,-151.0,0.00032856,7]
[339013874,1727125838323,-249.726848,0.00032856,7]
[339013875,1727125838333,-151.0,0.00032856,7]
[339013876,1727125838342,-151.0,0.00032856,7]
[339013877,1727125838352,-187.537194,0.00032856,7]
[339013878,1727125838361,-187.537194,0.00032856,7]
[339013879,1727125838370,-151.0,0.00032856,7]
[339013880,1727125838380,-151.0,0.00032856,7]
[339013881,1727125838389,-151.0,0.00032856,7]
[339013882,1727125838398,-166.770057,0.00032856,7]
[339013883,1727125838408,-274.59936,0.00032856,7]
[339013884,1727125838417,-151.0,0.00032856,7]
[339013885,1727125838425,-536.065061,0.00032856,7]
[339013886,1727125838438,-151.0,0.00032856,7]
[339013887,1727125838446,-151.0,0.00032856,7]
[339013888,1727125838455,-536.065061,0.00032856,7]
[339013889,1727125838465,-151.0,0.00032856,7]
[339013890,1727125838474,-151.0,0.00032856,7]
[339013891,1727125838483,-151.0,0.00032856,7]
[339013892,1727125838493,-151.0,0.00032856,7]
[339013893,1727125838502,-408.989536,0.00032856,7]
[339013894,1727125838511,-151.0,0.00032856,7]
[339013895,1727125838521,-408.989536,0.00032856,7]
[339013896,1727125838530,-151.0,0.00032856,7]
[339013897,1727125838539,-151.0,0.00032856,7]
[339013898,1727125838548,-183.227342,0.00032856,7]
[339013899,1727125838557,-183.227342,0.00032856,7]
[339013900,1727125838567,-187.035962,0.00032856,7]
[339013901,1727125838576,-151.0,0.00032856,7]
[339013902,1727125838585,-227.116468,0.00032856,7]
[339013903,1727125838594,-227.116468,0.00032856,7]
[339013904,1727125838606,-421.083467,0.00032856,7]
[339013905,1727125838615,-421.083467,0.00032856,7]
[339013906,1727125838624,-151.0,0.00032856,7]
[339013907,1727125838636,-151.0,0.00032856,7]
[339013908,1727125838645,-2003.218199,0.00032856,7]
[339013909,1727125838655,-2003.218199,0.00032856,7]
[339013910,1727125838664,-151.0,0.00032856,7]
[339013911,1727125838674,-2329.261157,0.00032856,7]
[339013912,1727125838683,-2329.261157,0.00032856,7]
[339013913,1727125838692,-168.83681,0.00032856,7]
[339013914,1727125838701,-329.751079,0.00032856,7]
[339013915,1727125838710,-168.83681,0.00032856,7]
[339013916,1727125838719,-719.160075,0.00032856,7]
[339013917,1727125838730,-329.751079,0.00032856,7]
[339013918,1727125838740,-151.0,0.00032856,7]
[339013919,1727125838750,-719.160075,0.00032856,7]
[339013920,1727125838758,-151.0,0.00032856,7]
[339013921,1727125838767,-2436.699895,0.00032856,7]
[339013922,1727125838777,-2436.699895,0.00032856,7]
[339013923,1727125838786,-151.0,0.00032856,7]
[339013924,1727125838795,-273.24042785,0.00032865,15]
[339013925,1727125838804,-915.18914429,0.00032865,15]
[339013926,1727125838813,-22799.15810965,0.00032866,5]
[339013950,1727125839613,-11816.26015665,0.00032866,5]
[339013952,1727125839622,-151.0,0.00032866,7]
[339013954,1727125839633,-415.854713,0.00032866,7]
[339013956,1727125839644,-415.854713,0.00032866,7]
[339013957,1727125839653,-151.0,0.00032866,7]
[339013959,1727125839662,-151.0,0.00032866,7]
[339013962,1727125839681,-151.0,0.00032866,7]
[339013964,1727125839692,-187.537194,0.00032866,7]
[339013966,1727125839702,-187.537194,0.00032866,7]
[339013967,1727125839712,-209.681953,0.00032866,7]
[339013968,1727125839722,-151.0,0.00032866,7]
[339013969,1727125839732,-151.0,0.00032866,7]
[339013970,1727125839742,-536.065061,0.00032866,7]
[339013971,1727125839751,-151.0,0.00032866,7]
[339013972,1727125839761,-151.0,0.00032866,7]
[339013973,1727125839770,-536.065061,0.00032866,7]
[339013974,1727125839779,-151.0,0.00032866,7]
[339013975,1727125839790,-151.0,0.00032866,7]
[339013976,1727125839800,-151.0,0.00032866,7]
[339013977,1727125839809,-151.0,0.00032866,7]
[339013978,1727125839819,-408.989536,0.00032866,7]
[339013979,1727125839828,-151.0,0.00032866,7]
[339013980,1727125839839,-408.989536,0.00032866,7]
[339013981,1727125839851,-151.0,0.00032866,7]
[339013982,1727125839860,-151.0,0.00032866,7]
[339013983,1727125839869,-183.227342,0.00032866,7]
[339013984,1727125839879,-183.227342,0.00032866,7]
[339013985,1727125839889,-151.0,0.00032866,7]
[339013986,1727125839899,-227.116468,0.00032866,7]
[339013987,1727125839909,-227.116468,0.00032866,7]
[339013988,1727125839919,-421.083467,0.00032866,7]
[339013989,1727125839930,-421.083467,0.00032866,7]
[339013990,1727125839940,-151.0,0.00032866,7]
[339013991,1727125839950,-151.0,0.00032866,7]
[339013992,1727125839960,-2003.218199,0.00032866,7]
[339013993,1727125839969,-2003.218199,0.00032866,7]
[339013994,1727125839979,-151.0,0.00032866,7]
[339013995,1727125839989,-2329.261157,0.00032866,7]
[339013996,1727125839999,-2329.261157,0.00032866,7]
[339013997,1727125840009,-168.83681,0.00032866,7]
[339013998,1727125840019,-329.751079,0.00032866,7]
[339013999,1727125840030,-168.83681,0.00032866,7]
[339014000,1727125840040,-719.160075,0.00032866,7]
[339014001,1727125840050,-329.751079,0.00032866,7]
[339014002,1727125840059,-151.0,0.00032866,7]
[339014003,1727125840070,-719.160075,0.00032866,7]
[339014004,1727125840080,-151.0,0.00032866,7]
[339014005,1727125840090,-2436.699895,0.00032866,7]
[339014006,1727125840101,-2436.699895,0.00032866,7]
[339014007,1727125840111,-151.0,0.00032866,7]
[339014008,1727125840121,-1553.892,0.00032867,2]
[339014009,1727125840131,-500.0,0.00032873,5]
[339014010,1727125840141,-500.0,0.00032873,5]
[339014011,1727125840151,-154.0,0.00032873,5]
[339014012,1727125840160,-151.0,0.00032876,7]
[339014013,1727125840170,-151.0,0.00032876,7]
[339014014,1727125840180,-151.0,0.00032876,7]
[339014015,1727125840190,-500.0,0.00032876,10]
[339014016,1727125840201,-500.0,0.00032876,30]
[339014017,1727125840210,-500.0,0.00032876,30]
[339014018,1727125840220,-500.0,0.00032876,30]
[339014019,1727125840230,-500.0,0.00032876,30]
[339014020,1727125840240,-500.0,0.00032876,30]
[339014021,1727125840250,-500.0,0.00032876,30]
[339014022,1727125840260,-500.0,0.00032876,30]
[339014023,1727125840270,-500.0,0.00032876,30]
[339014024,1727125840280,-151.0,0.00032876,7]
[339014025,1727125840295,-500.0,0.00032876,30]
[339014026,1727125840305,-518.55977239,0.00032876,30]
[339014027,1727125840315,-500.0,0.00032876,30]
[339014028,1727125840325,-151.0,0.00032876,7]
[339014029,1727125840335,-500.0,0.00032876,30]
[339014030,1727125840344,-434.61695001,0.00032876,30]
[339014031,1727125840356,-556.56718885,0.00032876,30]
[339014032,1727125840366,-500.0,0.00032876,30]
[339014033,1727125840376,-514.88054222,0.00032876,30]
[339014034,1727125840386,-502.14293627,0.00032876,30]
[339014035,1727125840396,-500.0,0.00032876,30]
[339014036,1727125840406,-201.9909663,0.00032876,30]
[339014037,1727125840416,-500.0,0.00032876,30]
[339014038,1727125840426,-500.0,0.00032876,30]
[339014039,1727125840436,-519.09568613,0.00032876,30]
[339014040,1727125840446,-500.0,0.00032876,30]
[339014041,1727125840456,-500.0,0.00032876,30]
[339014042,1727125840466,-500.0,0.00032876,30]
[339014043,1727125840477,-415.854713,0.00032876,7]
[339014044,1727125840487,-415.854713,0.00032876,7]
[339014045,1727125840497,-415.854713,0.00032876,7]
[339014046,1727125840507,-415.854713,0.00032876,7]
[339014047,1727125840516,-500.0,0.00032876,30]
[339014048,1727125840526,-500.0,0.00032876,30]
[339014049,1727125840535,-500.0,0.00032876,30]
[339014050,1727125840545,-151.0,0.00032876,7]
[339014051,1727125840554,-151.0,0.00032876,7]
[339014052,1727125840564,-500.0,0.00032876,30]
[339014053,1727125840574,-500.0,0.00032876,30]
[339014054,1727125840583,-500.0,0.00032876,30]
[339014055,1727125840593,-398.00014711,0.00032876,30]
[339014056,1727125840603,-500.0,0.00032876,30]
[339014057,1727125840612,-500.0,0.00032876,30]
[339014058,1727125840622,-500.0,0.00032876,30]
[339014059,1727125840633,-286.101278,0.00032876,7]
[339014060,1727125840644,-500.0,0.00032876,30]
[339014061,1727125840653,-500.0,0.00032876,30]
[339014062,1727125840663,-502.26009317,0.00032876,30]
[339014063,1727125840673,-500.0,0.00032876,30]
[339014064,1727125840682,-500.0,0.00032876,30]
[339014065,1727125840692,-500.0,0.00032876,30]
[339014066,1727125840702,-151.0,0.00032876,7]
[339014067,1727125840711,-292.169467,0.00032876,7]
[339014068,1727125840720,-500.0,0.00032876,30]
[339014069,1727125840730,-500.0,0.00032876,30]
[339014070,1727125840739,-500.0,0.00032876,30]
[339014071,1727125840752,-500.0,0.00032876,30]
[339014072,1727125840762,-500.0,0.00032876,30]
[339014073,1727125840771,-500.0,0.00032876,30]
[339014074,1727125840781,-500.0,0.00032876,30]
[339014075,1727125840790,-500.0,0.00032876,30]
[339014076,1727125840799,-500.0,0.00032876,30]
[339014077,1727125840809,-187.537194,0.00032876,7]
[339014078,1727125840819,-500.0,0.00032876,30]
[339014079,1727125840828,-187.537194,0.00032876,7]
[339014080,1727125840838,-500.0,0.00032876,30]
[339014081,1727125840847,-187.537194,0.00032876,7]
[339014082,1727125840860,-187.537194,0.00032876,7]
[339014083,1727125840869,-500.0,0.00032876,30]
[339014084,1727125840880,-500.0,0.00032876,30]
[339014085,1727125840890,-500.0,0.00032876,30]
[339014086,1727125840900,-500.0,0.00032876,30]
[339014087,1727125840909,-500.0,0.00032876,30]
[339014088,1727125840919,-500.0,0.00032876,30]
[339014089,1727125840928,-500.0,0.00032876,30]
[339014090,1727125840938,-253.966529,0.00032876,7]
[339014091,1727125840947,-253.966529,0.00032876,7]
[339014092,1727125840957,-253.966529,0.00032876,7]
[339014093,1727125840966,-500.0,0.00032876,7]
[339014094,1727125840976,-500.0,0.00032876,30]
[339014095,1727125840985,-500.0,0.00032876,30]
[339014096,1727125840995,-253.966529,0.00032876,7]
[339014097,1727125841004,-253.966529,0.00032876,7]
[339014098,1727125841014,-253.966529,0.00032876,7]
[339014099,1727125841024,-500.0,0.00032876,30]
[339014100,1727125841033,-500.0,0.00032876,30]
[339014101,1727125841246,-509.39515591,0.00032876,30]
[339014102,1727125841256,-500.0,0.00032876,30]
[339014103,1727125841265,-151.0,0.00032876,7]
[339014104,1727125841275,-151.0,0.00032876,7]
[339014105,1727125841285,-151.0,0.00032876,7]
[339014106,1727125841294,-151.0,0.00032876,7]
[339014107,1727125841304,-513.26154922,0.00032876,30]
[339014108,1727125841313,-151.0,0.00032876,7]
[339014109,1727125841322,-151.0,0.00032876,7]
[339014110,1727125841331,-500.0,0.00032876,30]
[339014111,1727125841341,-151.0,0.00032876,7]
[339014112,1727125841351,-151.0,0.00032876,7]
[339014113,1727125841360,-151.0,0.00032876,7]
[339014114,1727125841370,-500.0,0.00032876,30]
[339014115,1727125841379,-500.0,0.00032876,30]
[339014116,1727125841389,-500.0,0.00032876,30]
[339014117,1727125841398,-500.0,0.00032876,30]
[339014118,1727125841408,-503.3653671,0.00032876,30]
[339014119,1727125841417,-500.0,0.00032876,30]
[339014120,1727125841426,-500.0,0.00032876,30]
[339014121,1727125841436,-500.0,0.00032876,30]
[339014122,1727125841445,-500.0,0.00032876,30]
[339014123,1727125841455,-500.0,0.00032876,30]
[339014124,1727125841463,-500.0,0.00032876,30]
[339014125,1727125841473,-500.0,0.00032876,30]
[339014126,1727125841482,-500.0,0.00032876,30]
[339014127,1727125841492,-500.0,0.00032876,30]
[339014128,1727125841501,-500.0,0.00032876,30]
[339014129,1727125841510,-500.0,0.00032876,30]
[339014130,1727125841519,-769.31,0.00032876,30]
[339014131,1727125841529,-151.0,0.00032876,7]
[339014132,1727125841537,-500.0,0.00032876,30]
[339014133,1727125841547,-151.0,0.00032876,7]
[339014134,1727125841556,-221.073729,0.00032876,7]
[339014135,1727125841565,-2760.27,0.00032876,30]
[339014136,1727125841580,-500.0,0.00032876,30]
[339014137,1727125841595,-500.0,0.00032876,30]
[339014138,1727125841606,-151.0,0.00032876,7]
[339014139,1727125841616,-500.0,0.00032876,30]
[339014140,1727125841626,-500.0,0.00032876,30]
[339014141,1727125841639,-500.0,0.00032876,30]
[339014142,1727125841649,-151.0,0.00032876,7]
[339014143,1727125841660,-151.0,0.00032876,7]
[339014144,1727125841670,-151.0,0.00032876,7]
[339014145,1727125841680,-500.0,0.00032876,30]
[339014146,1727125841689,-500.0,0.00032876,30]
[339014147,1727125841699,-500.0,0.00032876,30]
[339014148,1727125841709,-500.0,0.00032876,30]
[339014149,1727125841718,-269.133083,0.00032876,7]
[339014150,1727125841729,-269.133083,0.00032876,7]
[339014151,1727125841738,-150.0,0.00032876,30]
[339014152,1727125841748,-269.133083,0.00032876,7]
[339014153,1727125841758,-500.0,0.00032876,30]
[339014154,1727125841768,-500.0,0.00032876,30]
[339014155,1727125841777,-500.0,0.00032876,30]
[339014156,1727125841787,-269.133083,0.00032876,7]
[339014157,1727125841796,-500.0,0.00032876,30]
[339014158,1727125841806,-269.133083,0.00032876,7]
[339014159,1727125841815,-269.133083,0.00032876,7]
[339014160,1727125841825,-500.0,0.00032876,30]
[339014161,1727125841835,-500.0,0.00032876,30]
[339014162,1727125841844,-500.0,0.00032876,30]
[339014163,1727125841855,-500.0,0.00032876,30]
[339014164,1727125841865,-500.0,0.00032876,30]
[339014165,1727125841874,-500.0,0.00032876,30]
[339014166,1727125841884,-151.0,0.00032876,7]
[339014167,1727125841894,-500.0,0.00032876,30]
[339014168,1727125841903,-182.664489,0.00032876,7]
[339014169,1727125841913,-151.0,0.00032876,7]
[339014170,1727125841922,-159.564646,0.00032876,7]
[339014171,1727125841931,-500.0,0.00032876,30]
[339014172,1727125841941,-500.0,0.00032876,30]
[339014173,1727125841951,-1313.16,0.00032876,7]
[339014174,1727125841960,-500.0,0.00032876,30]
[339014175,1727125841970,-500.0,0.00032876,30]
[339014176,1727125841980,-500.0,0.00032876,30]
[339014177,1727125841990,-500.0,0.00032876,30]
[339014178,1727125841999,-256.88975991,0.00032876,30]
[339014179,1727125842009,-594.49,0.00032876,30]
[339014180,1727125842019,-578.23,0.00032876,30]
[339014181,1727125842028,-500.0,0.00032876,120]
[339014182,1727125842037,-500.0,0.00032876,30]
[339014183,1727125842047,-500.0,0.00032876,30]
[339014184,1727125842057,-500.0,0.00032876,30]
[339014185,1727125842066,-589.25054199,0.00032876,30]
[339014186,1727125842076,-500.0,0.00032876,30]
[339014187,1727125842085,-500.0,0.00032876,2]
[339014188,1727125842094,-500.0,0.00032876,30]
[339014189,1727125842114,-500.0,0.00032876,30]
[339014190,1727125842124,-173.55800587,0.00032876,30]
[339014191,1727125842134,-828.33,0.00032876,30]
[339014192,1727125842143,-500.0,0.00032876,30]
[339014193,1727125842153,-526.75,0.00032876,30]
[339014194,1727125842162,-588.87114356,0.00032876,30]
[339014195,1727125842171,-500.0,0.00032876,30]
[339014196,1727125842181,-516.33,0.00032876,30]
[339014197,1727125842190,-792.09,0.00032876,30]
[339014198,1727125842199,-503.08688599,0.00032876,30]
[339014199,1727125842209,-500.0,0.00032876,30]
[339014200,1727125842218,-502.94,0.00032876,30]
[339014201,1727125842227,-800.0,0.00032876,30]
[339014202,1727125842237,-500.0,0.00032876,30]
[339014203,1727125842246,-500.0,0.00032876,30]
[339014204,1727125842255,-500.0,0.00032876,30]
[339014205,1727125842264,-254.83491519,0.00032876,30]
[339014206,1727125842274,-596.6,0.00032876,30]
[339014207,1727125842283,-500.0,0.00032876,30]
[339014208,1727125842292,-500.0,0.00032876,30]
[339014209,1727125842301,-500.0,0.00032876,30]
[339014210,1727125842311,-500.0,0.00032876,30]
[339014212,1727125842321,-500.0,0.00032876,30]
[339014213,1727125842330,-500.0,0.00032876,30]
[339014215,1727125842339,-406.622567,0.00032876,7]
[339014217,1727125842349,-406.622567,0.00032876,7]
[339014219,1727125842361,-406.622567,0.00032876,7]
[339014220,1727125842370,-500.0,0.00032876,30]
[339014221,1727125842380,-843.22,0.00032876,7]
[339014222,1727125842389,-500.0,0.00032876,30]
[339014223,1727125842399,-500.0,0.00032876,2]
[339014224,1727125842408,-406.622567,0.00032876,7]
[339014225,1727125842418,-406.622567,0.00032876,7]
[339014227,1727125842427,-406.622567,0.00032876,7]
[339014228,1727125842436,-500.0,0.00032876,30]
[339014229,1727125842446,-612.37,0.00032876,30]
[339014230,1727125842455,-500.0,0.00032876,30]
[339014231,1727125842464,-500.0,0.00032876,30]
[339014232,1727125842474,-559.47375172,0.00032876,30]
[339014233,1727125842483,-500.0,0.00032876,30]
[339014234,1727125842493,-554.396346,0.00032876,2]
[339014235,1727125842502,-500.0,0.00032876,30]
[339014236,1727125842512,-558.543896,0.00032876,30]
[339014237,1727125842521,-500.0,0.00032876,30]
[339014238,1727125842531,-289.13,0.00032876,30]
[339014239,1727125842539,-151.0,0.00032876,7]
[339014241,1727125842548,-151.0,0.00032876,7]
[339014243,1727125842558,-500.0,0.00032876,30]
[339014245,1727125842568,-151.0,0.00032876,7]
[339014247,1727125842578,-387.56547731,0.00032876,30]
[339014248,1727125842587,-500.0,0.00032876,30]
[339014249,1727125842596,-194.526018,0.00032876,7]
[339014251,1727125842614,-638.22,0.00032876,30]
[339014253,1727125842623,-500.0,0.00032876,30]
[339014255,1727125842635,-931.5,0.00032876,2]
[339014258,1727125842646,-500.0,0.00032876,30]
[339014260,1727125842661,-500.0,0.00032876,30]
[339014262,1727125842671,-500.0,0.00032876,30]
[339014263,1727125842681,-500.0,0.00032876,30]
[339014264,1727125842691,-500.0,0.00032876,30]
[339014265,1727125842702,-714.19,0.00032876,30]
[339014266,1727125842711,-500.0,0.00032876,7]
[339014267,1727125842721,-151.0,0.00032876,7]
[339014268,1727125842731,-500.0,0.00032876,30]
[339014269,1727125842740,-501.82532861,0.00032876,30]
[339014270,1727125842750,-500.0,0.00032876,30]
[339014271,1727125842760,-500.0,0.00032876,30]
[339014272,1727125842770,-629.69,0.00032876,30]
[339014273,1727125842780,-500.0,0.00032876,30]
[339014274,1727125842790,-500.0,0.00032876,30]
[339014275,1727125842799,-500.0,0.00032876,30]
[339014276,1727125842809,-525.91,0.00032876,30]
[339014277,1727125842818,-151.0,0.00032876,7]
[339014278,1727125842828,-151.0,0.00032876,7]
[339014279,1727125842837,-151.0,0.00032876,7]
[339014280,1727125842847,-500.0,0.00032876,30]
[339014281,1727125842858,-500.0,0.00032876,30]
[339014282,1727125842867,-500.0,0.00032876,30]
[339014283,1727125842877,-151.0,0.00032876,7]
[339014284,1727125842886,-151.0,0.00032876,7]
[339014285,1727125842895,-151.0,0.00032876,7]
[339014286,1727125842904,-1732.93,0.00032876,30]
[339014287,1727125842913,-500.0,0.00032876,30]
[339014288,1727125842923,-500.0,0.00032876,30]
[339014289,1727125842932,-500.0,0.00032876,30]
[339014290,1727125842941,-500.0,0.00032876,30]
[339014291,1727125842950,-151.0,0.00032876,7]
[339014292,1727125842959,-500.0,0.00032876,30]
[339014293,1727125842969,-500.0,0.00032876,30]
[339014294,1727125842978,-603.18,0.00032876,30]
[339014295,1727125842987,-500.0,0.00032876,30]
[339014296,1727125842997,-500.0,0.00032876,30]
[339014297,1727125843006,-524.09106011,0.00032876,30]
[339014298,1727125843016,-500.0,0.00032876,30]
[339014299,1727125843025,-517.0,0.00032876,30]
[339014300,1727125843035,-500.0,0.00032876,30]
[339014301,1727125843044,-500.0,0.00032876,30]
[339014302,1727125843053,-500.0,0.00032876,30]
[339014303,1727125843063,-500.0,0.00032876,30]
[339014304,1727125843072,-500.0,0.00032876,30]
[339014305,1727125843082,-500.0,0.00032876,30]
[339014306,1727125843091,-500.0,0.00032876,30]
[339014307,1727125843100,-1015.4,0.00032876,30]
[339014308,1727125843110,-500.0,0.00032876,30]
[339014309,1727125843119,-500.0,0.00032876,30]
[339014310,1727125843129,-502.58,0.00032876,30]
[339014311,1727125843139,-500.0,0.00032876,30]
[339014312,1727125843148,-500.0,0.00032876,30]
[339014313,1727125843157,-500.0,0.00032876,30]
[339014314,1727125843166,-500.0,0.00032876,30]
[339014315,1727125843176,-500.0,0.00032876,30]
[339014316,1727125843186,-654.48,0.00032876,30]
[339014317,1727125843195,-500.0,0.00032876,30]
[339014318,1727125843205,-500.0,0.00032876,30]
[339014319,1727125843214,-500.0,0.00032876,30]
[339014320,1727125843224,-500.0,0.00032876,30]
[339014321,1727125843233,-500.0,0.00032876,30]
[339014322,1727125843242,-500.0,0.00032876,30]
[339014323,1727125843252,-500.0,0.00032876,30]
[339014324,1727125843261,-544.79,0.00032876,30]
[339014325,1727125843270,-500.0,0.00032876,30]
[339014326,1727125843281,-181.255939,0.00032876,7]
[339014327,1727125843291,-500.0,0.00032876,30]
[339014328,1727125843300,-500.0,0.00032876,30]
[339014329,1727125843310,-151.0,0.00032876,7]
[339014330,1727125843319,-151.0,0.00032876,7]
[339014331,1727125843329,-151.0,0.00032876,7]
[339014332,1727125843339,-500.0,0.00032876,30]
[339014333,1727125843349,-584.43606522,0.00032876,30]
[339014334,1727125843359,-500.70306728,0.00032876,30]
[339014335,1727125843368,-500.0,0.00032876,30]
[339014336,1727125843378,-500.0,0.00032876,30]
[339014337,1727125843387,-500.0,0.00032876,30]
[339014338,1727125843396,-500.0,0.00032876,30]
[339014339,1727125843406,-500.0,0.00032876,30]
[339014340,1727125843415,-506.62259221,0.00032876,30]
[339014341,1727125843424,-500.0,0.00032876,30]
[339014342,1727125843433,-500.0,0.00032876,30]
[339014343,1727125843443,-500.0,0.00032876,30]
[339014344,1727125843452,-500.0,0.00032876,30]
[339014345,1727125843462,-500.0,0.00032876,30]
[339014346,1727125843471,-500.0,0.00032876,30]
[339014347,1727125843481,-500.0,0.00032876,30]
[339014348,1727125843490,-501.01286665,0.00032876,30]
[339014349,1727125843500,-500.0,0.00032876,30]
[339014350,1727125843509,-500.0,0.00032876,30]
[339014351,1727125843519,-500.0,0.00032876,30]
[339014352,1727125843529,-500.0,0.00032876,30]
[339014353,1727125843538,-500.0,0.00032876,30]
[339014354,1727125843551,-500.0,0.00032876,30]
[339014355,1727125843561,-500.0,0.00032876,30]
[339014356,1727125843571,-500.0,0.00032876,30]
[339014357,1727125843581,-500.0,0.00032876,30]
[339014358,1727125843591,-628.16,0.00032876,30]
[339014359,1727125843600,-1000.0,0.00032876,120]
[339014360,1727125843609,-151.0,0.00032876,7]
[339014361,1727125843619,-151.0,0.00032876,7]
[339014362,1727125843628,-500.0,0.00032876,30]
[339014363,1727125843641,-500.0,0.00032876,30]
[339014364,1727125843650,-500.0,0.00032876,30]
[339014365,1727125843661,-500.0,0.00032876,30]
[339014366,1727125843671,-500.0,0.00032876,30]
[339014367,1727125843680,-1896.28,0.00032876,30]
[339014368,1727125843690,-500.0,0.00032876,30]